Workbook

Sheet English
C2: Productive working time per year
C4: Calendar days | E4: 365
B5: - | C5: Weekend days | E5: -104
B6: - | C6: Holidays | E6: -9
B7: - | C7: Vacation days | E7: -30
B8: - | C8: Sick days | E8: -14
B9: - | C9: other absent days (e.g. seminars) | E9: -3
B11: = | C11: Anwesenheitstage | E11: =+SUM(E4:E9) -> 205
C13: Work hours per day | E13: 8
B15: = | C15: Present hours per year | E15: =+E13*E11 -> 1,640
B17: - | C17: Unproductive time | D17: 10% | E17: =-D17*E15 -> -164
B19: = | C19: Productive time per employee | E19: =+SUM(E15:E17) -> 1,476
C21: Employees | E21: 50
B23: = | C23: Productive hours per year | E23: =+E21*E19 -> 73,800
C26: Hourly rate
B28: + | C28: Service wages | E28: 4,000,000.00
B29: + | C29: Service overheads | D29: 15.0% | E29: =+E28*D29 -> 600,000.00
B30: + | C30: Other direct service costs | E30: 200,000.00
B32: = | C32: Service costs | E32: =+SUM(E28:E30) -> 4,800,000.00
B34: + | C34: Administration overheads | D34: 10.0% | E34: =+E32*D34 -> 480,000.00
B35: + | C35: Sales overheads | D35: 0.0% | E35: =+E32*D35 -> 0.00
B36: + | C36: Other direct sales costs | E36: 0.00
B38: = | C38: Cost price | E38: =+SUM(E32:E36) -> 5,280,000.00
B40: / | C40: =+C23 -> Productive hours per year | E40: =+E23 -> 73,800
B42: = | C42: Net hourly rate | E42: =+E38/E40 -> 71.54
B44: + | C44: Profit | D44: 50.0% | E44: =+E42*D44 -> 35.77
B46: = | C46: Cash sale price per hour | E46: =+SUM(E42:E44) -> 107.32
B48: + | C48: Cashback | D48: 2.0% | E48: =+E46/(1-D48-D49)*D48 -> 2.19
B49: + | C49: Comission fee | D49: 0.0% | E49: =+E46/(1-D48-D49)*D49 -> 0.00
B51: = | C51: Target selling price per hour | E51: =+SUM(E46:E49) -> 109.51
B53: + | C53: Customer discounts | D53: 8.0% | E53: =+E51/(1-D53)*D53 -> 9.52
B55: = | C55: Sales price (net) per hour | E55: =+SUM(E51:E53) -> 119.03
B57: + | C57: VAT | D57: 19.0% | E57: =+E55*D57 -> 22.62
B59: = | C59: Sales price (gross) per hour | E59: =+SUM(E55:E57) -> 142

Sheet German
C2: Produktive Arbeitszeit pro Jahr
C4: Kalendertage | E4: 365
B5: - | C5: Wochenende | E5: -104
B6: - | C6: Feiertage | E6: -9
B7: - | C7: Urlaubstage | E7: -30
B8: - | C8: Krankheitstage | E8: -14
B9: - | C9: sonstige Abwesenheitstage (Fortbildung, etc.) | E9: -3
B11: = | C11: Anwesenheitstage | E11: =+SUM(E4:E9) -> 205
C13: Arbeitszeit in Stunden pro Tag | E13: 8
B15: = | C15: Anwesenheitsstunden pro Jahr | E15: =+E13*E11 -> 1,640
B17: - | C17: Unproduktive Zeit | D17: 10% | E17: =-D17*E15 -> -164
B19: = | C19: Produktive Zeit pro Mitarbeiter | E19: =+SUM(E15:E17) -> 1,476
C21: Mitarbeiter | E21: 50
B23: = | C23: Produktive Stunden pro Jahr | E23: =+E21*E19 -> 73,800
C26: Stundensatz
B28: + | C28: Dienstleistungsslöhne | E28: 4,000,000.00
B29: + | C29: Dienstleistungsgemeinkosten | D29: 15.0% | E29: =+E28*D29 -> 600,000.00
B30: + | C30: Sondereinzelkosten der Dienstleistung | E30: 200,000.00
B32: = | C32: Dienstleistungskosten | E32: =+SUM(E28:E30) -> 4,800,000.00
B34: + | C34: Verwaltungsgemeinkosten | D34: 10.0% | E34: =+E32*D34 -> 480,000.00
B35: + | C35: Vertriebsgemeinkosten | D35: 0.0% | E35: =+E32*D35 -> 0.00
B36: + | C36: Sondereinzelkosten des Vertriebs | E36: 0.00
B38: = | C38: Selbstkosten | E38: =+SUM(E32:E36) -> 5,280,000.00
B40: / | C40: =+C23 -> Produktive Stunden pro Jahr | E40: =+E23 -> 73,800
B42: = | C42: Netto-Stundensatz | E42: =+E38/E40 -> 71.54
B44: + | C44: Gewinnzuschlag | D44: 50.0% | E44: =+E42*D44 -> 35.77
B46: = | C46: Barverkaufspreis pro Stunde | E46: =+SUM(E42:E44) -> 107.32
B48: + | C48: Kundenskonto | D48: 2.0% | E48: =+E46/(1-D48-D49)*D48 -> 2.19
B49: + | C49: Vertreterprovision | D49: 0.0% | E49: =+E46/(1-D48-D49)*D49 -> 0.00
B51: = | C51: Zielverkaufspreis pro Stunde | E51: =+SUM(E46:E49) -> 109.51
B53: + | C53: Kundenrabatt | D53: 8.0% | E53: =+E51/(1-D53)*D53 -> 9.52
B55: = | C55: Angebotspreis (netto) pro Stunde | E55: =+SUM(E51:E53) -> 119.03
B57: + | C57: Mehrwertsteuer | D57: 19.0% | E57: =+E55*D57 -> 22.62
B59: = | C59: Angebotspreis (brutto) pro Stunde | E59: =+SUM(E55:E57) -> 142
